bitfinex/quotes_ETHUSD_20240703
["timestamp","ask_amount","ask_price","bid_price","bid_amount"]
[1720012457867,0.05996586,3306.5,3305.5,1.822]
[1720012458066,0.05996586,3306.5,3305.6,0.1822]
[1720012458591,0.05996586,3306.5,3305.3,1.822]
[1720012459207,0.05996586,3306.5,3305.1,3.0]
[1720012459585,0.05996586,3306.5,3305.0,1.822]
[1720012459770,2.4451,3306.4,3305.0,1.822]
[1720012460124,3.0,3307.2,3304.9,0.30146384]
[1720012460125,2.4451,3306.2,3304.9,1.822]
[1720012460288,0.05996586,3306.1,3304.9,1.822]
[1720012461108,0.05996586,3306.1,3304.6,1.822]
[1720012461670,2.3892,3306.0,3304.6,1.822]
[1720012461874,0.05996586,3305.9,3304.7,0.5416]
[1720012463181,2.2601,3305.8,3304.4,7.47]
[1720012463517,2.3293,3305.6,3304.2,1.822]
[1720012463676,0.05996586,3305.5,3304.2,1.822]
[1720012463881,2.2926,3305.4,3304.2,1.822]
[1720012464195,2.2926,3305.4,3303.7,3.0269]
[1720012464196,0.05996586,3305.3,3304.3,0.4822]
[1720012464405,0.05996586,3305.2,3303.9,1.822]
[1720012465148,0.05996586,3305.2,3303.8,1.822]
[1720012467251,0.05996586,3305.2,3303.9,1.88252369]
[1720012467414,0.05996586,3305.2,3303.9,4.90916369]
[1720012467625,0.05996586,3305.2,3304.1,1.822]
[1720012467820,0.05996586,3305.2,3304.2,0.06051761]
[1720012468164,2.2926,3305.4,3304.3,1.88251761]
[1720012468804,2.2926,3305.4,3304.3,4.90886761]
[1720012469153,2.2926,3305.4,3304.5,1.822]
[1720012469307,2.2926,3305.4,3304.6,2.36733338]
[1720012469504,2.4187,3305.7,3304.6,2.256824]
[1720012469809,0.05996586,3305.6,3304.6,2.256824]
[1720012471626,0.05996586,3305.6,3304.6,0.434824]
[1720012471826,2.2689,3305.5,3304.0,3.82020537]
[1720012472014,0.05996586,3305.4,3304.1,3.0]
[1720012472438,0.05996586,3305.4,3304.0,1.08706406]
[1720012472656,2.3079,3305.3,3304.0,0.79359537]
[1720012472960,0.05996586,3305.2,3303.7,4.84888]
[1720012473169,0.05996586,3305.2,3303.9,1.822]
[1720012473466,0.05996586,3305.2,3303.8,3.08732085]
[1720012473467,2.3079,3305.3,3304.3,4.84828]
[1720012473760,2.3079,3305.3,3304.4,0.06051455]
[1720012473975,2.3079,3305.3,3304.5,1.822]
[1720012474106,2.3079,3305.3,3304.6,0.06051034]
[1720012475461,2.3079,3305.3,3304.5,4.84816]
[1720012475612,2.3079,3305.3,3304.7,1.822]
[1720012477663,2.3079,3305.3,3304.7,4.84799]
[1720012478676,2.3079,3305.3,3304.3,0.30107478]
[1720012478840,0.05996586,3305.2,3304.4,0.06051812]
[1720012479393,2.3079,3305.3,3304.4,2.07076993]
[1720012480644,2.3079,3305.3,3304.4,2.01025181]
[1720012481212,2.3079,3305.3,3303.9,0.30873209]
[1720012481213,0.05996586,3305.2,3304.2,0.29326377]
[1720012481363,0.05996586,3305.2,3304.3,0.06052107]
[1720012482412,2.3079,3305.3,3304.3,0.06052107]
[1720012482413,2.3079,3305.3,3304.4,1.822]
[1720012482566,2.3079,3305.3,3304.5,0.06051081]
[1720012482768,2.3079,3305.3,3304.6,1.822]
[1720012483016,2.3079,3305.3,3304.7,0.06051081]
[1720012483511,2.4735,3305.9,3304.7,0.06051081]
[1720012483714,2.4735,3305.9,3304.9,1.822]
[1720012483882,2.4735,3305.9,3305.1,2.695]
[1720012484213,2.4735,3305.9,3305.2,0.06050312]
[1720012485074,2.4735,3305.9,3305.3,0.06050355]
[1720012485278,2.3772,3306.3,3305.5,2.695]
[1720012485476,2.3772,3306.3,3305.6,0.06049471]
[1720012485889,2.61492,3306.3,3305.5,2.695]
[1720012486064,0.05996586,3306.2,3305.3,1.822]
[1720012486267,0.05996586,3306.2,3305.0,1.822]
[1720012486268,2.2746,3306.1,3305.0,1.822]
[1720012486465,0.05996586,3306.0,3305.0,1.822]
[1720012487370,0.05996586,3306.0,3305.1,2.695]
[1720012487576,0.05996586,3306.0,3305.2,0.4517]
[1720012487784,2.2746,3306.1,3305.3,0.06050209]
[1720012489776,2.2746,3306.1,3305.5,2.695]
[1720012490021,0.05996586,3306.7,3305.5,2.695]
[1720012490022,2.2687,3306.6,3305.6,0.06049495]
[1720012490222,2.2687,3306.6,3305.8,1.822]
[1720012491795,2.2687,3306.6,3305.9,0.06048858]
[1720012493236,2.2687,3306.6,3306.0,1.88248805]
[1720012493396,2.2687,3306.6,3306.0,1.822]
[1720012494792,2.2687,3306.6,3306.1,1.822]
[1720012495005,2.2687,3306.6,3306.1,2.0042]
[1720012498011,3.11266002,3307.9,3306.2,2.695]
[1720012498012,2.2727,3307.8,3306.2,2.695]
[1720012498211,0.5839375,3307.7,3306.2,2.695]
[1720012498408,0.52397164,3307.6,3306.3,0.06048331]
[1720012498658,0.5839375,3307.5,3306.3,0.06048331]
[1720012498863,0.52397164,3307.4,3306.3,0.06048331]
[1720012499065,0.5839375,3307.3,3306.3,1.88248331]
[1720012499212,0.05996586,3307.3,3306.4,0.45774833]
[1720012499425,0.05996586,3307.3,3306.5,0.06047872]
[1720012499838,0.05996586,3307.5,3306.6,2.695]
[1720012500012,0.05996586,3307.5,3306.7,0.06047611]
[1720012500213,0.34562961,3307.6,3306.7,0.06047611]
[1720012500443,0.05996586,3307.6,3307.0,2.695]
[1720012500845,0.05996586,3307.6,3306.6,1.822]
[1720012500846,0.05996586,3307.6,3306.6,4.517]
[1720012501052,0.05996586,3307.6,3306.3,7.47]
[1720012501346,0.05996586,3307.7,3306.3,2.695]
[1720012501558,0.23326659,3307.6,3306.4,0.2695]
[1720012501719,0.05996586,3307.5,3306.4,0.2695]
[1720012501917,0.05996586,3307.5,3306.3,2.695]
[1720012501918,0.05996586,3307.5,3306.1,0.1822]
[1720012502162,0.05996586,3307.5,3306.2,1.822]
[1720012502451,2.3089,3307.4,3306.2,1.822]
[1720012502662,0.05996586,3307.3,3306.2,1.822]
[1720012502832,0.03096395,3307.2,3306.2,1.822]
[1720012503168,0.09092981,3307.2,3306.5,2.695]
[1720012503385,0.03096395,3307.2,3306.6,0.32997566]
[1720012503973,0.09092981,3307.2,3306.2,1.822]
[1720012504171,0.09092981,3307.2,3306.4,2.695]
[1720012504537,0.09092981,3307.2,3306.3,1.822]
[1720012504741,0.09092981,3307.2,3306.4,2.695]
[1720012504940,0.03096395,3307.2,3306.8,2.695]
[1720012505247,0.03096395,3307.2,3306.9,0.32997069]
[1720012505633,2.3986,3307.1,3306.0,1.822]
[1720012505960,2.3986,3307.1,3306.1,4.57748729]
[1720012506667,2.3986,3307.1,3306.2,0.06048216]
[1720012506865,2.3986,3307.1,3306.3,0.06048216]
[1720012507038,0.03096395,3307.2,3306.6,1.822]
[1720012507222,0.03096395,3307.2,3306.7,0.0604741]
[1720012507634,0.03096395,3307.2,3306.6,2.2737]
[1720012510030,0.03096395,3307.2,3306.3,1.822]
[1720012510374,0.03096395,3307.2,3306.0,2.695]
[1720012510375,2.3614,3307.1,3306.0,2.695]
[1720012510546,0.05996586,3307.0,3306.0,2.695]
[1720012511568,0.78325917,3307.1,3306.1,1.822]
[1720012513447,0.78325917,3307.1,3306.0,2.695]
[1720012514328,0.52399599,3307.0,3306.0,2.9645]
[1720012514537,0.78325917,3307.1,3306.0,2.9645]
[1720012514738,0.52399559,3307.0,3306.0,2.9645]
[1720012514940,0.52400479,3306.9,3305.5,0.29714329]
[1720012515168,0.78325917,3307.1,3305.6,2.695]
[1720012515329,0.52405496,3306.8,3305.6,2.695]
[1720012515529,0.52405496,3306.7,3305.6,2.695]
[1720012515767,2.3523,3306.6,3305.4,2.695]
[1720012515965,0.52405496,3306.5,3305.5,0.4517]
[1720012516474,2.695,3306.3,3303.9,1.26116238]
[1720012516630,2.484,3305.9,3304.2,4.517]
[1720012516840,0.52405496,3305.8,3304.6,2.695]
[1720012517168,0.82486046,3305.8,3304.7,0.2695]
[1720012517374,0.52405496,3305.7,3304.7,0.2695]
[1720012517727,0.52405496,3305.7,3304.8,0.060513]
[1720012517962,0.52405496,3305.7,3305.0,2.695]
[1720012518143,0.52418837,3305.8,3305.4,2.695]
[1720012518328,2.484,3305.9,3305.4,2.695]
[1720012519433,2.484,3305.9,3305.0,2.695]
[1720012519630,2.484,3305.9,3304.7,7.7395]
[1720012519827,0.52421231,3305.8,3304.7,0.2695]
[1720012520057,2.484,3305.9,3304.7,0.2695]
[1720012520243,0.77262273,3305.8,3304.7,0.2695]
[1720012520456,0.52422273,3305.7,3304.0,7.47]
[1720012520630,2.2693,3305.6,3304.1,1.822]
[1720012520833,0.52422273,3305.5,3304.0,2.695]
[1720012521059,0.27935227,3305.4,3304.1,0.2695]
[1720012521263,2.3091,3305.2,3303.4,2.4642]
[1720012521484,5.3091,3305.2,3303.6,2.695]
[1720012521688,5.3091,3305.2,3303.3,7.47]
[1720012521689,2.3091,3305.1,3303.3,7.47]
[1720012521962,1.35528003,3305.0,3303.3,2.695]
[1720012522161,0.52437003,3304.9,3303.3,2.695]
[1720012523182,2.3091,3304.8,3303.3,2.695]
[1720012523411,5.3091,3304.8,3303.3,2.695]
[1720012523699,0.53091,3304.7,3303.3,2.695]
[1720012523876,3.53091,3304.7,3303.3,2.695]
[1720012524075,2.4063,3304.6,3302.6,7.47]
[1720012524277,5.4063,3304.6,3302.8,2.695]
[1720012524478,1.15276862,3304.5,3302.8,2.9645]
[1720012524802,4.15276862,3304.5,3302.8,2.9645]
[1720012525177,4.15276862,3304.5,3303.2,2.695]
[1720012525377,4.15276862,3304.5,3303.3,0.06054226]
[1720012525582,3.0,3304.5,3303.3,0.06054226]
[1720012525875,2.4063,3304.6,3303.6,2.695]
[1720012526197,2.4063,3304.6,3303.7,0.06053138]
[1720012526907,2.4063,3304.6,3304.0,2.695]
[1720012527114,2.392,3305.6,3304.1,0.06052755]
[1720012527300,3.124,3305.6,3304.2,0.06052204]
[1720012527497,2.392,3305.6,3304.4,2.695]
[1720012527702,2.392,3305.6,3304.5,0.06051409]
[1720012528933,2.392,3305.6,3304.4,2.695]
[1720012530629,3.0,3306.2,3304.8,2.695]
[1720012530630,2.3554,3306.2,3304.8,2.695]
[1720012530807,0.3,3306.1,3304.8,2.9645]
[1720012531621,0.3,3306.1,3304.8,0.2695]
[1720012531938,0.3,3306.1,3304.5,1.822]
[1720012532138,3.3,3306.1,3304.5,1.822]
[1720012534745,3.3,3306.1,3304.4,2.695]
[1720012534746,2.3491,3306.0,3304.4,2.695]
[1720012534909,5.3491,3306.0,3304.4,2.695]
[1720012535230,2.3491,3306.0,3304.4,2.695]
[1720012535431,0.56491,3305.9,3304.5,0.06052144]
[1720012535612,2.3491,3306.0,3304.5,1.88252144]
[1720012536343,5.3491,3306.0,3304.5,1.822]
[1720012536554,5.3491,3306.0,3304.6,0.06051186]
[1720012536727,5.3491,3306.0,3304.8,2.695]
[1720012537851,5.3491,3306.0,3304.9,0.06050751]
[1720012538018,5.3491,3306.0,3305.0,0.50646075]
[1720012542278,3.0,3306.0,3305.1,0.0605075]
[1720012542432,2.4669,3306.4,3305.2,2.695]
[1720012542633,0.52414983,3306.3,3305.2,2.695]
[1720012542844,0.29910498,3306.3,3305.2,3.20339682]
[1720012543239,2.2697,3306.9,3305.6,2.695]
[1720012543441,0.52408558,3306.8,3305.7,0.06049412]
[1720012543670,2.2697,3306.9,3305.7,0.06049412]
[1720012543970,0.52408329,3306.8,3305.7,0.06049412]
[1720012544157,2.2697,3306.9,3305.8,0.27554941]
[1720012544475,0.52404826,3306.8,3305.8,0.33604133]
[1720012544674,2.2697,3306.9,3305.8,0.33604133]
[1720012545155,0.52405667,3306.8,3305.6,2.695]
[1720012545343,0.52405667,3306.7,3305.4,1.822]
[1720012546258,0.52405667,3306.7,3305.3,2.4291]
[1720012546470,0.35240567,3306.6,3305.0,0.50646075]
[1720012546776,0.52412394,3306.5,3305.0,6.20146075]
[1720012546961,0.52412394,3306.4,3305.0,6.20146075]
[1720012547166,0.35240567,3306.6,3305.1,0.06050513]
[1720012547365,0.52411315,3306.5,3305.1,0.06050513]
[1720012547697,0.35240567,3306.6,3305.2,2.63039659]
[1720012547886,0.35240567,3306.6,3305.3,0.06049953]
[1720012548385,3.0,3306.8,3305.4,4.517]
[1720012548582,0.52409649,3306.7,3305.5,2.372]
[1720012548889,0.52409649,3306.6,3305.3,4.517]
[1720012549084,3.0,3306.8,3305.3,4.517]
[1720012549291,0.52410462,3306.7,3305.3,4.517]
[1720012549459,0.52410462,3306.6,3305.4,2.35453966]
[1720012549669,0.27938046,3306.7,3305.5,0.06049537]
[1720012549993,0.52409885,3306.6,3305.5,0.06049537]
[1720012550151,0.27938046,3306.7,3305.5,0.06049537]
[1720012550486,0.85203407,3306.6,3305.5,0.57149887]
[1720012550688,0.32793805,3306.6,3305.5,0.57149887]
[1720012553303,0.52409596,3306.5,3305.6,2.4192]
[1720012553466,0.52409957,3306.4,3305.7,0.06049535]
[1720012553668,0.32793805,3306.6,3305.6,2.4192]
[1720012553867,0.52409773,3306.5,3305.6,2.4192]
[1720012554074,0.32793805,3306.6,3305.6,2.4192]
[1720012554275,0.52410144,3306.5,3305.6,2.4192]
[1720012554567,0.32793805,3306.6,3305.6,2.4192]
[1720012554568,0.52410144,3306.4,3305.6,2.4192]
[1720012554768,0.52410144,3306.3,3305.6,2.4192]
[1720012554989,0.32793805,3306.6,3305.6,2.4192]
[1720012555215,0.52409222,3306.5,3305.6,2.4192]
[1720012555405,0.52409222,3306.4,3305.7,0.06049495]
[1720012555715,0.32793805,3306.6,3305.7,0.06049495]
[1720012555871,0.52408597,3306.5,3305.7,0.06049495]
[1720012556072,0.52408039,3306.4,3305.7,3.0545648]
[1720012556273,2.4933,3307.3,3305.8,0.06049181]
[1720012556487,0.52401247,3307.1,3306.1,2.695]
[1720012556694,0.52401247,3307.0,3306.1,2.695]
[1720012556877,7.32,3307.5,3306.1,2.75548663]
[1720012557077,0.52396728,3307.1,3306.2,0.27554866]
[1720012557280,0.52396728,3307.0,3306.2,0.27554866]
[1720012557507,7.32,3307.5,3306.1,1.822]
[1720012557708,0.52399624,3307.1,3306.1,1.822]
[1720012559236,3.0,3307.4,3306.2,0.06048283]
[1720012559532,0.52397175,3307.1,3306.1,1.822]
[1720012559735,0.52397175,3307.1,3305.8,5.48432]
[1720012559736,7.32,3307.5,3306.3,4.517]
[1720012560032,2.4933,3307.7,3306.4,0.06047765]
[1720012560237,2.4933,3307.7,3306.3,4.517]
[1720012561000,3.0,3307.6,3306.3,4.517]
[1720012561538,3.0,3307.6,3306.7,2.695]
[1720012561739,2.3512,3308.2,3306.8,0.06047353]
[1720012561903,2.3512,3308.2,3306.9,0.27554735]
[1720012563345,2.3512,3308.2,3306.4,2.2849]
[1720012563703,2.3512,3308.2,3306.4,4.9799]
[1720012563923,2.3512,3308.2,3306.5,0.06047582]
[1720012564454,2.3512,3308.2,3306.5,1.87947582]
[1720012565447,2.3512,3308.2,3306.6,0.06047363]
[1720012565654,2.3512,3308.2,3306.7,0.24842097]
[1720012565815,2.3512,3308.2,3306.8,0.0604736]
[1720012566256,2.3512,3308.2,3306.8,4.5744736]
[1720012567529,2.3512,3308.2,3306.8,7.5985336]
[1720012567867,2.3512,3308.2,3307.0,1.819]
[1720012568025,2.3512,3308.2,3307.1,0.29736559]
[1720012568464,2.3512,3308.2,3307.1,2.11636559]
[1720012568795,2.6015709,3308.6,3307.1,5.14196559]
[1720012569077,2.6015709,3308.6,3307.1,8.16575559]
[1720012569446,3.0,3308.5,3307.1,8.16575559]
[1720012569668,0.1165709,3308.6,3307.1,14.38054559]
[1720012569888,0.1165709,3308.6,3307.1,17.32008]
[1720012570868,0.1165709,3308.6,3307.1,11.10529]
[1720012572580,2.4112,3308.2,3307.1,0.2369]
[1720012572894,2.4112,3308.2,3306.7,0.18794736]
[1720012573057,2.4112,3308.2,3306.3,5.061]
[1720012573058,5.1062,3308.2,3306.3,2.366]
[1720012573375,2.3759,3307.4,3305.9,3.30312912]
[1720012573799,2.3759,3307.4,3305.9,0.60812912]
[1720012573941,2.3759,3307.4,3305.4,3.02534]
[1720012573942,2.3759,3307.4,3305.3,4.946]
[1720012574140,2.3759,3307.4,3305.7,2.695]
[1720012574395,2.3759,3307.4,3305.8,0.06048853]
[1720012574691,2.3759,3307.4,3305.7,2.695]
[1720012575039,0.27165035,3307.2,3305.3,4.946]
[1720012575267,0.27165035,3307.2,3305.4,3.02531]
[1720012575467,0.27165035,3307.2,3305.7,2.695]
[1720012576048,0.03096395,3307.2,3306.1,2.695]
[1720012576655,0.03096395,3307.2,3306.5,2.695]
[1720012577075,0.03096395,3307.2,3306.6,0.06047106]
[1720012577944,0.03096395,3307.2,3306.6,3.08471106]
[1720012578579,0.03096395,3307.2,3306.8,3.02406]
[1720012578786,0.03096395,3307.2,3306.9,0.852406]
[1720012579953,0.03096395,3307.2,3306.9,3.876376]
[1720012580282,0.03096395,3307.2,3307.1,3.02379]
[1720012580590,0.03096395,3307.2,3306.9,0.852406]
[1720012580893,0.03096395,3307.2,3307.0,3.02387]
[1720012581186,0.03096395,3307.2,3307.1,4.02188249]
[1720012581767,0.03096395,3307.2,3307.1,3.9614176]
[1720012582088,0.03096395,3307.2,3307.1,4.02187788]
[1720012582290,0.1165709,3308.6,3307.4,3.02351]
[1720012582492,0.1165709,3308.6,3307.5,0.06045676]
[1720012582703,0.1165709,3308.6,3307.6,0.30839668]
[1720012582883,0.1165709,3308.6,3307.7,0.06045678]
[1720012583926,0.1165709,3308.6,3307.3,1.819]
[1720012584069,0.1165709,3308.6,3307.0,6.04767]
[1720012584070,0.1165709,3308.6,3307.0,3.02382]
[1720012584566,0.1165709,3308.6,3307.2,3.02369]
[1720012584766,0.1165709,3308.6,3306.6,2.68571326]
[1720012584767,0.24006709,3308.5,3307.3,0.39613176]
[1720012584964,0.24006709,3308.5,3307.1,2.2066276]
[1720012586413,0.52379771,3308.4,3307.1,2.2066276]
[1720012586599,0.24006709,3308.5,3307.1,2.2066276]
[1720012586779,0.52380614,3308.4,3307.1,2.2066276]
[1720012586984,0.24006709,3308.5,3307.1,2.2066276]
[1720012587185,0.24006709,3308.5,3307.2,0.52066276]
[1720012587990,3.1165709,3308.6,3307.3,4.90305421]
[1720012588303,0.1165709,3308.6,3307.5,1.819]
[1720012588512,0.1165709,3308.6,3307.6,0.06045689]
[1720012588671,0.1165709,3308.6,3307.7,0.18794569]
[1720012589205,0.1165709,3308.6,3307.8,0.06045689]
[1720012590290,0.1165709,3308.6,3308.3,1.819]
[1720012590601,0.1165709,3308.6,3308.2,6.61273]
[1720012590602,0.1165709,3308.6,3308.2,3.59]
[1720012591028,0.1165709,3308.6,3308.0,1.819]
[1720012591234,0.1165709,3308.6,3308.1,0.1819]
[1720012591667,2.2622,3308.5,3307.8,3.0]
[1720012591868,2.2622,3308.5,3307.1,4.800813]
[1720012592073,2.2622,3308.5,3307.2,3.52066276]
[1720012592673,2.2622,3308.5,3307.2,0.52066276]
[1720012593007,0.26795946,3308.4,3307.2,0.52066276]
[1720012593205,0.26795946,3308.4,3306.8,4.84303]
[1720012593372,0.26795946,3308.4,3306.9,3.0]
[1720012593572,2.9721161,3308.3,3306.6,3.59]
[1720012593772,2.4483,3308.1,3306.6,5.409]
[1720012595093,2.4483,3308.1,3306.8,1.819]
[1720012596220,2.4483,3308.1,3306.8,4.84306]
[1720012596522,2.4483,3308.1,3306.8,7.86706]
[1720012596674,2.4483,3308.1,3306.9,2.905706]
[1720012598314,2.4483,3308.1,3306.9,5.929666]
[1720012599226,2.4483,3308.1,3307.1,1.819]
[1720012599432,2.4483,3308.1,3307.1,8.43279]
[1720012599578,0.03008237,3308.4,3307.4,1.819]
[1720012599778,0.03008237,3308.4,3307.7,2.691]
[1720012600100,0.03008237,3308.4,3307.8,0.06045573]
[1720012600708,0.03008237,3308.4,3307.7,2.691]
[1720012601886,0.03008237,3308.4,3307.5,5.02433]
[1720012602094,0.03008237,3308.4,3307.5,0.1819]
[1720012602600,0.03008237,3308.4,3307.6,0.31819]
[1720012603203,0.03008237,3308.4,3307.7,0.06046014]
[1720012603518,0.03008237,3308.4,3307.6,0.31819]
[1720012605998,0.03008237,3308.4,3307.4,3.0]
[1720012606194,0.03008237,3308.4,3307.0,7.84288]
[1720012606398,0.52379176,3308.3,3307.0,7.84288]
[1720012606595,0.52379261,3308.2,3307.0,4.819]
[1720012606892,0.52379261,3308.1,3307.1,0.5905706]
[1720012607104,2.4449,3308.2,3307.1,0.5905706]
[1720012607314,0.52381468,3308.1,3307.1,0.5905706]
[1720012607532,2.4449,3308.2,3307.2,0.54095706]
[1720012607533,0.52381468,3308.0,3307.2,0.54095706]
[1720012607691,2.4449,3308.2,3307.2,0.54095706]
[1720012607886,0.5238295,3308.1,3307.2,0.54095706]
[1720012608206,2.4449,3308.2,3306.9,1.086706]
[1720012608207,0.5238295,3308.0,3306.9,1.086706]
[1720012608517,0.5238295,3307.9,3306.9,1.086706]
[1720012608716,0.5238295,3308.1,3306.9,1.086706]
[1720012608946,0.5238295,3308.1,3306.8,3.588]
[1720012609433,0.5238295,3308.1,3306.9,0.06047212]
[1720012609732,0.5238295,3308.1,3307.1,1.819]
[1720012609958,0.5238295,3308.1,3307.2,0.0604635]
[1720012610094,0.03008237,3308.4,3307.1,4.84275]
[1720012610095,0.03008237,3308.4,3307.4,1.819]
[1720012610412,0.03008237,3308.4,3307.5,2.4147]
[1720012611595,0.52375912,3308.3,3307.5,0.5957]
[1720012611792,0.5237829,3308.2,3307.5,0.5957]
[1720012611997,0.03008237,3308.4,3307.5,0.5957]
[1720012612220,0.52377527,3308.3,3307.5,0.5957]
[1720012612418,0.52377527,3308.2,3307.5,0.5957]
[1720012612589,0.52377527,3308.3,3307.5,0.5957]
[1720012613009,0.52377527,3308.3,3306.9,3.0]
[1720012613334,2.3214,3308.2,3306.9,3.0]
[1720012613632,0.52377527,3308.1,3306.9,3.0]
[1720012613994,0.523834,3308.0,3307.0,0.06046956]
[1720012614193,2.3214,3308.2,3307.1,0.30604696]
[1720012614194,0.523834,3307.9,3307.1,0.30604696]
[1720012614423,2.3214,3308.2,3307.2,0.06046479]
[1720012614728,0.52379936,3308.1,3307.2,1.819]
[1720012614908,2.3214,3308.2,3307.2,1.819]
[1720012615107,2.3214,3308.2,3307.3,0.2125047]
[1720012616364,2.3214,3308.2,3307.1,0.30604696]
[1720012616365,0.52379534,3308.1,3307.1,0.30604696]
[1720012616679,0.52379534,3308.0,3307.1,0.30604696]
[1720012616822,0.52379534,3308.1,3307.1,0.30604696]
[1720012617019,2.3214,3308.2,3307.2,0.06046644]
[1720012617240,0.52377918,3308.1,3307.2,0.06046644]
[1720012617553,2.3214,3308.2,3307.1,0.36651339]
[1720012617725,0.52377064,3308.1,3307.4,1.819]
[1720012617920,0.03008237,3308.4,3307.4,1.819]
[1720012618260,0.52376244,3308.3,3307.4,1.819]
[1720012618468,0.03008237,3308.4,3307.4,1.819]
[1720012618764,0.52374431,3308.3,3307.5,0.843056]
[1720012618970,0.52374431,3308.2,3307.3,3.588]
[1720012619265,0.03008237,3308.4,3307.3,3.588]
[1720012619450,0.52376082,3308.3,3307.3,3.588]
[1720012619619,0.52376082,3308.2,3307.3,3.588]
[1720012619819,0.52376082,3308.3,3307.4,0.39270383]
[1720012620148,0.03008237,3308.4,3307.4,0.39270383]
[1720012620354,0.52379262,3308.2,3307.2,0.33903834]
[1720012620534,0.52379262,3308.2,3306.6,5.61702014]
[1720012620535,2.3477,3308.0,3306.4,0.00315453]
[1720012620719,0.52379262,3307.9,3306.5,1.819]
[1720012621463,3.52379262,3307.9,3306.5,1.819]
[1720012621769,0.52379262,3307.8,3306.4,1.82215453]
[1720012622065,0.52379262,3307.8,3306.5,2.66246645]
[1720012622277,0.52379262,3307.8,3306.5,5.68679645]
[1720012622439,0.52379262,3307.8,3306.8,5.407]
[1720012622627,0.03008237,3308.4,3306.8,5.407]
[1720012622628,2.31958237,3308.4,3307.1,4.84276]
[1720012622828,2.31958237,3308.4,3307.2,0.717626]
[1720012623038,0.52381123,3308.3,3307.2,0.717626]
[1720012623277,0.52381123,3308.2,3307.2,0.717626]
[1720012623486,0.52381123,3308.1,3307.2,0.717626]
[1720012623776,0.52381123,3308.0,3306.6,2.3303]
[1720012623983,3.52381123,3308.3,3306.8,2.692]
[1720012624221,0.52381123,3308.2,3306.8,2.692]
[1720012624470,0.35238112,3308.1,3306.9,0.2692]
[1720012624699,0.52381123,3308.0,3306.9,0.2692]
[1720012625195,0.52381123,3307.9,3306.9,0.2692]
[1720012625476,3.0,3308.3,3306.9,0.2692]
[1720012625783,0.52383064,3308.2,3306.9,0.2692]
[1720012626093,0.52383064,3308.1,3306.9,0.2692]
[1720012626289,0.52383064,3308.1,3307.0,0.29612]
[1720012626589,0.52383514,3308.1,3307.0,0.29612]
[1720012626797,0.52383514,3308.0,3307.0,0.29612]
[1720012627007,2.2811,3307.9,3306.9,0.2692]
[1720012627161,0.52383514,3307.8,3306.9,0.2692]
[1720012628874,2.2811,3307.9,3306.9,0.2692]
[1720012629082,0.52384848,3307.8,3306.9,0.2692]
[1720012629389,2.2811,3307.9,3306.9,2.692]
[1720012629588,0.52385713,3307.8,3306.9,2.692]
[1720012629761,2.2811,3307.9,3306.9,2.692]
[1720012630157,2.2811,3307.9,3307.3,2.692]
[1720012630364,5.4843,3308.3,3307.3,2.692]
[1720012630557,0.52379197,3308.2,3307.4,0.2692]
[1720012630804,0.52379197,3308.1,3307.4,0.2692]
[1720012631012,5.4843,3308.3,3307.4,0.2692]
[1720012631174,0.52379001,3308.2,3307.4,0.2692]
[1720012631375,5.4843,3308.3,3307.5,0.29612]
[1720012631376,0.52379001,3308.1,3307.5,0.29612]
[1720012631679,2.4843,3308.3,3307.5,0.29612]
[1720012632004,0.52378156,3308.2,3307.5,0.29612]
[1720012632211,0.52378156,3308.1,3307.5,0.29612]
[1720012632373,0.52378156,3308.2,3307.5,0.29612]
[1720012632703,0.52378156,3308.2,3307.3,2.692]
[1720012633004,0.03008237,3308.4,3307.7,2.692]
[1720012634670,0.03008237,3308.4,3307.7,2.7524572]
[1720012636204,0.03008237,3308.4,3308.1,2.692]
[1720012636375,0.03008237,3308.4,3308.2,0.2692]
[1720012638769,0.03008237,3308.4,3308.2,0.32964945]
[1720012638975,0.03008237,3308.4,3308.3,3.08314948]
[1720012639292,0.03008237,3308.4,3308.3,10.93394948]
[1720012639592,0.03008237,3308.4,3308.3,13.93394948]
[1720012639800,0.03008237,3308.4,3308.3,15.62346443]
[1720012640021,0.1165709,3308.6,3308.3,12.60076443]
[1720012640227,0.1165709,3308.6,3308.5,2.692]
[1720012641214,0.1165709,3308.6,3308.5,5.71451]
[1720012641380,2.3948,3309.9,3308.5,5.71451]
[1720012641567,4.58628,3309.9,3308.6,0.63793601]
[1720012641769,2.3948,3309.9,3308.6,0.63793601]
[1720012642208,2.3948,3309.9,3308.9,2.68461102]
[1720012644825,2.3948,3309.9,3309.0,0.06043682]
[1720012644991,2.4817,3310.4,3309.3,2.692]
[1720012645310,3.02987,3310.4,3309.3,2.9612]
[1720012645474,3.0,3310.3,3309.3,2.9612]
[1720012645673,2.4817,3310.4,3309.3,2.9612]
[1720012646089,2.4817,3310.4,3309.3,0.2692]
[1720012646290,2.4817,3310.4,3309.0,5.41278682]
[1720012646686,2.4817,3310.4,3309.3,2.692]
[1720012646930,2.3406,3311.0,3309.3,2.692]
[1720012647216,0.52346508,3310.9,3309.4,3.02164]
[1720012647423,0.28640651,3310.8,3309.5,0.753264]
[1720012648587,0.28640651,3310.8,3309.1,3.02193]
[1720012648792,0.28640651,3310.8,3309.2,2.692]
[1720012649021,2.2536,3310.6,3308.6,6.00093513]
[1720012649220,5.2536,3310.6,3308.8,2.692]
[1720012649425,0.93271073,3310.5,3308.9,0.871431]
[1720012649610,3.93271073,3310.5,3308.9,0.871431]
[1720012652417,3.93271073,3310.5,3308.8,2.692]
[1720012654362,3.93271073,3310.5,3308.9,0.06043464]
[1720012654521,3.93271073,3310.5,3309.3,2.692]
[1720012655307,3.93271073,3310.5,3308.6,6.29809541]
[1720012655567,2.449,3310.4,3308.6,2.97859513]
[1720012655767,3.61074573,3310.3,3308.5,2.692]
[1720012656051,3.0,3310.2,3308.5,2.692]